[Event "RUS-ch Boys U21 2021"]
[Site "Loo"]
[Date "2021.04.23"]
[Round "3.4"]
[White "Nesterov, Arseniy"]
[Black "Dudin, Gleb"]
[Result "0-1"]
[ECO "B13"]
[WhiteElo "2482"]
[BlackElo "2418"]
[Annotator "ChessBase"]
[PlyCount "104"]
[EventDate "2021.04.21"]
[EventType "swiss"]
[EventCountry "RUS"]
[SourceTitle "playchess.com"]
[Source "ChessBase"]
[SourceQuality "1"]
[TimeControl "40/5400+30:1800+30"]

1. e4 {[%emt 0:00:00]} c6 {[%emt 0:02:05]} 2. d4 {[%emt 0:00:00]} d5 {[%emt 0:00:06]} 3. exd5 {[%emt 0:00:00]} cxd5 {[%emt 0:00:10]} 4. Bd3 {[%emt 0:00:00]} Nc6 {[%emt 0:03:11]} 5. c3 {[%emt 0:00:02]} Qc7 {[%emt 0:00:06]} 6. Ne2 {[%emt 0:00:09]} Bg4 {[%emt 0:01:43]} 7. O-O {[%emt 0:00:11]} e6 {[%emt 0:00:06]} 8. Qe1 {[%emt 0:00:06]} Nf6 {[%emt 0:01:34]} 9. Bg5 {[%emt 0:00:49]} Bxe2 {[%emt 0:03:00]} 10. Qxe2 {[%emt 0:00:05]} Bd6 {[%emt 0:00:09]} 11. h3 {[%emt 0:01:29]} h6 {[%emt 0:15:04]} 12. Bh4 {[%emt 0:00:25]} Nd7 {[%emt 0:18:59]} 13. Qf3 {[%emt 0:10:48]} O-O {[%emt 0:16:42]} 14. Nd2 {[%emt 0:07:05]} a6 {[%emt 0:04:22]} 15. a4 {[%emt 0:02:28]} g6 {[%emt 0:11:43]} 16. Rfe1 {[%emt 0:08:44]} Kg7 {[%emt 0:02:16]} 17. Nf1 {[%emt 0:01:04]} Rae8 {[%emt 0:03:16]} 18. Re2 {[%emt 0:04:58]} e5 {[%emt 0:04:02]} 19. Qxd5 {[%emt 0:06:43]} Nb6 {[%emt 0:01:50]} 20. Qb3 {[%emt 0:04:48]} exd4 {[%emt 0:00:24]} 21. Rxe8 {[%emt 0:00:06]} Rxe8 {[%emt 0:00:03]} 22. a5 {[%emt 0:01:22]} Nd7 {[%emt 0:00:35]} 23. cxd4 {[%emt 0:00:36]} Nxd4 {[%emt 0:01:08]} 24. Qd5 {[%emt 0:01:58]} Be5 {[%emt 0:03:35]} 25. Ra4 {[%emt 0:13:38]} Nc6 {[%emt 0:00:09]} 26. Re4 {[%emt 0:09:13]} Re6 {[%emt 0:00:06]} 27. b4 {[%emt 0:08:54]} Rd6 {[%emt 0:04:15]} 28. Qc4 {[%emt 0:00:27]} f5 {[%emt 0:00:29]} 29. Re3 {[%emt 0:07:13]} Rd4 {[%emt 0:00:17]} 30. Qe6 {[%emt 0:01:08]} Nf8 {[%emt 0:02:06]} 31. Qe8 {[%emt 0:01:28]} Rxh4 {[%emt 0:00:35]} 32. Bxf5 {[%emt 0:00:08]} gxf5 {[%emt 0:01:21]} 33. Ng3 {[%emt 0:00:03]} Qd7 {[%emt 0:00:28]} 34. Qxd7+ {[%emt 0:00:10]} Nxd7 {[%emt 0:00:22]} 35. Nxf5+ {[%emt 0:00:00]} Kf6 {[%emt 0:00:39]} 36. Nxh4 {[%emt 0:00:01]} Nxb4 {[%emt 0:00:33]} 37. Rf3+ {[%emt 0:00:35]} Ke6 {[%emt 0:00:26]} 38. g4 {[%emt 0:01:04]} Nc6 {[%emt 0:00:25]} 39. Nf5 {[%emt 0:00:21]} Nxa5 {[%emt 0:00:38]} 40. Nxh6 {[%emt 0:00:00]} b5 {[%emt 0:00:00]} 41. Ra3 {[%emt 0:02:10]} Bc7 {[%emt 0:06:21]} 42. g5 {[%emt 0:00:51]} b4 {[%emt 0:09:10]} 43. Re3+ {[%emt 0:00:05]} Ne5 {[%emt 0:00:05]} 44. g6 {[%emt 0:14:38]} Kf6 {[%emt 0:02:17]} 45. Rxe5 {[%emt 0:00:14]} Bxe5 {[%emt 0:03:07]} 46. Ng4+ {[%emt 0:00:04]} Kg7 {[%emt 0:01:15]} 47. Nxe5 {[%emt 0:00:01]} b3 {[%emt 0:00:09]} 48. Nd3 {[%emt 0:00:03]} Nc4 {[%emt 0:00:26]} 49. Kf1 {[%emt 0:00:05]} a5 {[%emt 0:00:21]} 50. Ke1 {[%emt 0:00:56]} a4 {[%emt 0:00:08]} 51. Kd1 {[%emt 0:00:10]} a3 {[%emt 0:00:31]} 52. Nc1 {[%emt 0:00:26]} b2 {[%emt 0:00:09]} 0-1

[Event "RUS-ch Boys U21 2021"]
[Site "Loo"]
[Date "2021.04.23"]
[Round "3.5"]
[White "Makarian, Rudik"]
[Black "Zhafyarov, Adel"]
[Result "1/2-1/2"]
[ECO "D30"]
[WhiteElo "2468"]
[BlackElo "2252"]
[Annotator "ChessBase"]
[PlyCount "86"]
[EventDate "2021.04.21"]
[EventType "swiss"]
[EventCountry "RUS"]
[SourceTitle "playchess.com"]
[Source "ChessBase"]
[SourceQuality "1"]
[TimeControl "40/5400+30:1800+30"]

1. d4 {[%emt 0:00:00]} d5 {[%emt 0:00:01]} 2. c4 {[%emt 0:00:16]} e6 {[%emt 0:00:27]} 3. Nf3 {[%emt 0:00:30]} c6 {[%emt 0:04:04]} 4. b3 {[%emt 0:00:09]} Nf6 {[%emt 0:03:09]} 5. g3 {[%emt 0:00:44]} Bb4+ {[%emt 0:01:07]} 6. Nbd2 {[%emt 0:01:24]} O-O {[%emt 0:08:25]} 7. Bg2 {[%emt 0:17:00]} Bc3 {[%emt 0:16:47]} 8. Rb1 {[%emt 0:02:09]} e5 {[%emt 0:05:46]} 9. dxe5 {[%emt 0:01:53]} Ne4 {[%emt 0:01:47]} 10. O-O {[%emt 0:03:13]} Bf5 {[%emt 0:08:27]} 11. Nh4 {[%emt 0:21:13]} Nxd2 {[%emt 0:01:11]} 12. Bxd2 {[%emt 0:00:06]} Bxb1 {[%emt 0:01:17]} 13. Bxc3 {[%emt 0:00:04]} Be4 {[%emt 0:00:24]} 14. Bxe4 {[%emt 0:09:45]} dxe4 {[%emt 0:00:01]} 15. Qc2 {[%emt 0:00:06]} Re8 {[%emt 0:04:28]} 16. Nf5 {[%emt 0:00:35]} Qg5 {[%emt 0:08:38]} 17. Nd6 {[%emt 0:04:49]} Re7 {[%emt 0:00:04]} 18. Qxe4 {[%emt 0:04:30]} Nd7 {[%emt 0:13:40]} 19. f4 {[%emt 0:00:50]} Qg4 {[%emt 0:01:07]} 20. Nxb7 {[%emt 0:06:46]} Nxe5 {[%emt 0:02:57]} 21. Bxe5 {[%emt 0:00:12]} f6 {[%emt 0:01:44]} 22. Nd6 {[%emt 0:08:21]} fxe5 {[%emt 0:00:20]} 23. Qxc6 {[%emt 0:00:03]} Rf8 {[%emt 0:03:42]} 24. Qd5+ {[%emt 0:00:14]} Qe6 {[%emt 0:00:03]} 25. fxe5 {[%emt 0:00:10]} Qxd5 {[%emt 0:02:06]} 26. cxd5 {[%emt 0:00:07]} Rxe5 {[%emt 0:00:07]} 27. e4 {[%emt 0:00:19]} Rf6 {[%emt 0:06:22]} 28. Rxf6 {[%emt 0:00:46]} gxf6 {[%emt 0:00:02]} 29. Kf2 {[%emt 0:00:12]} f5 {[%emt 0:00:05]} 30. Ke3 {[%emt 0:04:36]} fxe4 {[%emt 0:00:20]} 31. Nxe4 {[%emt 0:00:02]} Kf8 {[%emt 0:00:43]} 32. Kd4 {[%emt 0:01:48]} Rf5 {[%emt 0:00:24]} 33. Kc5 {[%emt 0:00:25]} Re5 {[%emt 0:01:18]} 34. Nc3 {[%emt 0:01:16]} Re3 {[%emt 0:01:38]} 35. Na4 {[%emt 0:02:04]} Re2 {[%emt 0:00:20]} 36. a3 {[%emt 0:00:15]} Rxh2 {[%emt 0:00:45]} 37. Nc3 {[%emt 0:06:33]} Ke7 {[%emt 0:01:45]} 38. b4 {[%emt 0:00:29]} Rg2 {[%emt 0:00:22]} 39. Ne4 {[%emt 0:03:01]} Rc2+ {[%emt 0:01:57]} 40. Kd4 {[%emt 0:00:00]} Ra2 {[%emt 0:00:00]} 41. d6+ {[%emt 0:10:42]} Ke6 {[%emt 0:02:02]} 42. a4 {[%emt 0:00:11]} h6 {[%emt 0:00:12]} 43. a5 {[%emt 0:00:42]} Rb2 {[%emt 0:04:58]} 1/2-1/2

[Event "RUS-ch Boys U21 2021"]
[Site "Loo"]
[Date "2021.04.23"]
[Round "3.6"]
[White "Vetokhin, Savva"]
[Black "Shubin, Kirill"]
[Result "0-1"]
[ECO "B69"]
[WhiteElo "2261"]
[BlackElo "2466"]
[Annotator "ChessBase"]
[PlyCount "82"]
[EventDate "2021.04.21"]
[EventType "swiss"]
[EventCountry "RUS"]
[SourceTitle "playchess.com"]
[Source "ChessBase"]
[SourceQuality "1"]
[TimeControl "40/5400+30:1800+30"]

1. e4 {[%emt 0:00:00]} c5 {[%emt 0:00:00]} 2. Nf3 {[%emt 0:00:00]} Nc6 {[%emt 0:00:00]} 3. d4 {[%emt 0:00:00]} cxd4 {[%emt 0:00:00]} 4. Nxd4 {[%emt 0:00:00]} Nf6 {[%emt 0:00:00]} 5. Nc3 {[%emt 0:00:00]} d6 {[%emt 0:00:00]} 6. Bg5 {[%emt 0:00:08]} e6 {[%emt 0:00:00]} 7. Qd2 {[%emt 0:00:19]} a6 {[%emt 0:00:00]} 8. O-O-O {[%emt 0:00:09]} Bd7 {[%emt 0:00:01]} 9. f4 {[%emt 0:00:10]} Be7 {[%emt 0:00:04]} 10. Nf3 {[%emt 0:00:09]} b5 {[%emt 0:00:46]} 11. Bxf6 {[%emt 0:00:56]} gxf6 {[%emt 0:00:04]} 12. g3 {[%emt 0:00:32]} b4 {[%emt 0:03:42]} 13. Ne2 {[%emt 0:01:45]} a5 {[%emt 0:00:08]} 14. Kb1 {[%emt 0:08:23]} a4 {[%emt 0:01:13]} 15. Ned4 {[%emt 0:01:38]} Nxd4 {[%emt 0:07:51]} 16. Nxd4 {[%emt 0:01:40]} Qb6 {[%emt 0:02:30]} 17. Bc4 {[%emt 0:08:29]} O-O {[%emt 0:06:27]} 18. f5 {[%emt 0:05:33]} e5 {[%emt 0:00:44]} 19. Nf3 {[%emt 0:00:22]} Rfc8 {[%emt 0:04:02]} 20. Bd5 {[%emt 0:03:21]} Bc6 {[%emt 0:01:04]} 21. Qe2 {[%emt 0:13:18]} Qc5 {[%emt 0:03:51]} 22. Ne1 {[%emt 0:04:04]} b3 {[%emt 0:05:55]} 23. a3 {[%emt 0:06:46]} Bxd5 {[%emt 0:04:11]} 24. Rxd5 {[%emt 0:00:06]} Qc4 {[%emt 0:00:06]} 25. Qd3 {[%emt 0:18:04]} Qxd3 {[%emt 0:09:24]} 26. cxd3 {[%emt 0:00:12]} Bf8 {[%emt 0:00:30]} 27. d4 {[%emt 0:02:56]} Rc4 {[%emt 0:00:59]} 28. Nd3 {[%emt 0:01:46]} Rac8 {[%emt 0:00:30]} 29. g4 {[%emt 0:01:34]} exd4 {[%emt 0:01:05]} 30. g5 {[%emt 0:01:34]} fxg5 {[%emt 0:00:12]} 31. Rg1 {[%emt 0:01:51]} f6 {[%emt 0:00:48]} 32. h4 {[%emt 0:00:31]} h6 {[%emt 0:01:03]} 33. Nf4 {[%emt 0:03:23]} R8c5 {[%emt 0:02:55]} 34. hxg5 {[%emt 0:02:20]} hxg5 {[%emt 0:00:04]} 35. Ne6 {[%emt 0:02:18]} Rxd5 {[%emt 0:00:14]} 36. exd5 {[%emt 0:00:19]} d3 {[%emt 0:00:23]} 37. Rd1 {[%emt 0:00:26]} Bh6 {[%emt 0:01:20]} 38. Rxd3 {[%emt 0:00:30]} g4 {[%emt 0:00:15]} 39. Rd1 {[%emt 0:01:11]} Be3 {[%emt 0:00:21]} 40. Re1 {[%emt 0:00:00]} Bf2 {[%emt 0:00:00]} 41. Rd1 {[%emt 0:05:00]} g3 {[%emt 0:00:17]} 0-1

[Event "RUS-ch Boys U21 2021"]
[Site "Loo"]
[Date "2021.04.23"]
[Round "3.7"]
[White "Pogosyan, Stefan"]
[Black "Akhtariev, Andrey"]
[Result "1-0"]
[ECO "A04"]
[WhiteElo "2444"]
[BlackElo "2190"]
[Annotator "NA"]
[PlyCount "69"]
[EventDate "2021.04.21"]
[EventType "swiss"]
[EventCountry "RUS"]
[SourceTitle "playchess.com"]
[Source "ChessBase"]
[SourceQuality "1"]
[TimeControl "40/5400+30:1800+30"]

1. Nf3 {[%emt 0:04:00]} c5 {[%emt 0:00:00]} 2. g3 {[%emt 0:00:38]} Nc6 {[%emt 0:00:03]} 3. Bg2 {[%emt 0:00:08]} g6 {[%emt 0:00:18]} 4. O-O {[%emt 0:00:42]} Bg7 {[%emt 0:00:11]} 5. c4 {[%emt 0:02:26]} e5 {[%emt 0:00:49]} 6. Nc3 {[%emt 0:00:31]} Nge7 {[%emt 0:00:06]} 7. d3 {[%emt 0:03:39]} O-O {[%emt 0:00:42]} 8. a3 {[%emt 0:02:43]} Rb8 {[%emt 0:01:20]} 9. Rb1 {[%emt 0:02:47]} d6 {[%emt 0:00:39]} 10. b4 {[%emt 0:01:01]} f5 {[%emt 0:00:34]} 11. Bd2 {[%emt 0:04:18]} h6 {[%emt 0:01:38]} 12. Qa4 {[%emt 0:13:06]} a6 {[%emt 0:09:42]} 13. bxc5 {[%emt 0:05:43]} dxc5 {[%emt 0:00:15]} 14. Nd5 {[%emt 0:00:19]} Be6 {[%emt 0:07:52]} 15. Nxe7+ {[%emt 0:00:41]} Qxe7 {[%emt 0:00:22]} 16. Nh4 {[%emt 0:02:46]} Kh7 {[%emt 0:18:36]} 17. Bxc6 {[%emt 0:01:34]} bxc6 {[%emt 0:00:11]} 18. Qxc6 {[%emt 0:00:29]} g5 {[%emt 0:01:13]} 19. Nf3 {[%emt 0:11:55]} e4 {[%emt 0:07:21]} 20. dxe4 {[%emt 0:03:24]} Bxc4 {[%emt 0:02:32]} 21. Rxb8 {[%emt 0:04:56]} Rxb8 {[%emt 0:00:13]} 22. exf5 {[%emt 0:00:08]} Kh8 {[%emt 0:16:57]} 23. Re1 {[%emt 0:09:02]} Bb5 {[%emt 0:07:56]} 24. Qg6 {[%emt 0:00:24]} Qe8 {[%emt 0:05:34]} 25. Qd6 {[%emt 0:06:04]} Rd8 {[%emt 0:00:58]} 26. Qxc5 {[%emt 0:00:27]} g4 {[%emt 0:01:24]} 27. f6 {[%emt 0:00:13]} Bxf6 {[%emt 0:06:15]} 28. Bc3 {[%emt 0:01:32]} Qf7 {[%emt 0:00:10]} 29. Qf5 {[%emt 0:01:15]} Rf8 {[%emt 0:00:42]} 30. Bxf6+ {[%emt 0:00:38]} Qxf6 {[%emt 0:00:04]} 31. Qxg4 {[%emt 0:00:10]} Rd8 {[%emt 0:02:02]} 32. a4 {[%emt 0:01:19]} Bc6 {[%emt 0:00:19]} 33. Rc1 {[%emt 0:00:39]} a5 {[%emt 0:01:23]} 34. Rc5 {[%emt 0:02:07]} Rg8 {[%emt 0:00:47]} 35. Qd4 {[%emt 0:00:32]} 1-0

[Event "RUS-ch Boys U21 2021"]
[Site "Loo"]
[Date "2021.04.23"]
[Round "3.8"]
[White "Stukan, Martin"]
[Black "Shpakov, Vladimir"]
[Result "1/2-1/2"]
[ECO "B15"]
[WhiteElo "2390"]
[BlackElo "1871"]
[Annotator "NA"]
[PlyCount "92"]
[EventDate "2021.04.21"]
[EventType "swiss"]
[EventCountry "RUS"]
[SourceTitle "playchess.com"]
[Source "ChessBase"]
[SourceQuality "1"]
[TimeControl "40/5400+30:1800+30"]

1. e4 {[%emt 0:00:00]} c6 {[%emt 0:00:00]} 2. d4 {[%emt 0:00:00]} d5 {[%emt 0:00:00]} 3. Nc3 {[%emt 0:00:00]} dxe4 {[%emt 0:00:00]} 4. Nxe4 {[%emt 0:00:00]} Nf6 {[%emt 0:00:00]} 5. Nxf6+ {[%emt 0:00:00]} exf6 {[%emt 0:00:00]} 6. c3 {[%emt 0:00:00]} Bf5 {[%emt 0:00:06]} 7. Bd3 {[%emt 0:00:16]} Bxd3 {[%emt 0:00:13]} 8. Qxd3 {[%emt 0:00:03]} Bd6 {[%emt 0:00:12]} 9. Nf3 {[%emt 0:00:05]} O-O {[%emt 0:00:13]} 10. O-O {[%emt 0:00:06]} Nd7 {[%emt 0:01:44]} 11. Be3 {[%emt 0:02:40]} Re8 {[%emt 0:01:25]} 12. Rad1 {[%emt 0:05:26]} Qc7 {[%emt 0:01:26]} 13. c4 {[%emt 0:16:04]} Rad8 {[%emt 0:00:43]} 14. h3 {[%emt 0:07:35]} Bf8 {[%emt 0:02:39]} 15. Qc2 {[%emt 0:04:25]} g6 {[%emt 0:00:39]} 16. c5 {[%emt 0:24:16]} Bg7 {[%emt 0:01:29]} 17. Nd2 {[%emt 0:02:31]} f5 {[%emt 0:01:23]} 18. Nc4 {[%emt 0:00:10]} Nf6 {[%emt 0:00:46]} 19. Nd6 {[%emt 0:07:50]} Re6 {[%emt 0:01:49]} 20. Qb3 {[%emt 0:06:05]} Nd5 {[%emt 0:04:51]} 21. Bg5 {[%emt 0:05:31]} Rb8 {[%emt 0:01:27]} 22. Nb5 {[%emt 0:05:39]} Qd7 {[%emt 0:04:40]} 23. Nc3 {[%emt 0:00:25]} Nxc3 {[%emt 0:00:56]} 24. bxc3 {[%emt 0:00:04]} Re4 {[%emt 0:01:23]} 25. Rfe1 {[%emt 0:01:34]} Qe8 {[%emt 0:02:48]} 26. Kf1 {[%emt 0:01:39]} h6 {[%emt 0:01:55]} 27. f3 {[%emt 0:01:43]} hxg5 {[%emt 0:09:40]} 28. fxe4 fxe4 {[%emt 0:00:15]} 29. Kg1 {[%emt 0:00:44]} Kh7 {[%emt 0:00:27]} 30. d5 {[%emt 0:03:09]} cxd5 {[%emt 0:02:11]} 31. Rxd5 {[%emt 0:00:03]} f5 {[%emt 0:00:40]} 32. Red1 {[%emt 0:01:16]} e3 {[%emt 0:01:45]} 33. Qc4 {[%emt 0:00:05]} e2 {[%emt 0:00:58]} 34. Re1 {[%emt 0:00:08]} Qe3+ {[%emt 0:00:11]} 35. Kh2 {[%emt 0:01:46]} Be5+ {[%emt 0:01:04]} 36. Kh1 {[%emt 0:00:39]} Qg3 {[%emt 0:04:26]} 37. Rxe5 {[%emt 0:00:06]} Qxe1+ {[%emt 0:00:29]} 38. Kh2 {[%emt 0:00:01]} f4 {[%emt 0:00:37]} 39. Qxe2 {[%emt 0:04:16]} Qg3+ {[%emt 0:02:24]} 40. Kg1 {[%emt 0:00:00]} Rd8 {[%emt 0:00:00]} 41. Re7+ {[%emt 0:01:08]} Kh6 {[%emt 0:01:24]} 42. Rxb7 {[%emt 0:02:39]} Qxc3 {[%emt 0:02:16]} 43. Rh7+ {[%emt 0:01:46]} Kxh7 {[%emt 0:00:10]} 44. Qe7+ {[%emt 0:00:01]} Kh6 {[%emt 0:00:16]} 45. Qxd8 {[%emt 0:00:03]} Qe1+ {[%emt 0:01:40]} 46. Kh2 {[%emt 0:00:03]} Qg3+ {[%emt 0:00:09]} 1/2-1/2

[Event "RUS-ch Boys U21 2021"]
[Site "Loo"]
[Date "2021.04.23"]
[Round "3.9"]
[White "Koliev, Irlan"]
[Black "Pavlov, Danila"]
[Result "0-1"]
[ECO "E99"]
[WhiteElo "2023"]
[BlackElo "2360"]
[Annotator "NA"]
[PlyCount "90"]
[EventDate "2021.04.21"]
[EventType "swiss"]
[EventCountry "RUS"]
[SourceTitle "playchess.com"]
[Source "ChessBase"]
[SourceQuality "1"]
[TimeControl "40/5400+30:1800+30"]

1. d4 {[%emt 0:00:00]} Nf6 {[%emt 0:00:00]} 2. c4 {[%emt 0:00:00]} g6 {[%emt 0:00:00]} 3. Nc3 {[%emt 0:00:00]} Bg7 {[%emt 0:00:00]} 4. e4 {[%emt 0:00:00]} d6 {[%emt 0:00:00]} 5. Be2 {[%emt 0:00:00]} O-O {[%emt 0:00:00]} 6. Nf3 {[%emt 0:00:00]} e5 {[%emt 0:00:09]} 7. O-O {[%emt 0:00:05]} Nc6 {[%emt 0:00:09]} 8. d5 {[%emt 0:00:05]} Ne7 {[%emt 0:00:05]} 9. Ne1 {[%emt 0:00:07]} Nd7 {[%emt 0:02:54]} 10. f3 {[%emt 0:00:07]} f5 {[%emt 0:00:05]} 11. g4 {[%emt 0:00:04]} Nf6 {[%emt 0:05:02]} 12. Nd3 {[%emt 0:00:27]} h5 {[%emt 0:04:49]} 13. g5 {[%emt 0:02:20]} Nh7 {[%emt 0:01:22]} 14. h4 {[%emt 0:00:22]} f4 {[%emt 0:01:34]} 15. Kf2 {[%emt 0:08:33]} c6 {[%emt 0:00:46]} 16. Qb3 {[%emt 0:00:46]} Kh8 {[%emt 0:02:52]} 17. Bd2 {[%emt 0:01:21]} b5 {[%emt 0:03:36]} 18. Rh1 {[%emt 0:02:51]} bxc4 {[%emt 0:03:49]} 19. Qxc4 {[%emt 0:00:26]} Qb6+ {[%emt 0:03:40]} 20. Kg2 {[%emt 0:00:17]} Ba6 {[%emt 0:31:51]} 21. Qb4 {[%emt 0:12:44]} Qd4 {[%emt 0:01:04]} 22. Qxd4 {[%emt 0:01:07]} exd4 {[%emt 0:00:44]} 23. Nd1 {[%emt 0:00:23]} cxd5 {[%emt 0:00:08]} 24. N1f2 {[%emt 0:02:27]} dxe4 {[%emt 0:07:18]} 25. Nxe4 {[%emt 0:10:43]} Nd5 {[%emt 0:17:12]} 26. Kf2 {[%emt 0:00:18]} Ne3 {[%emt 0:01:44]} 27. Nxf4 {[%emt 0:01:24]} Rxf4 {[%emt 0:00:18]} 28. Bxa6 {[%emt 0:00:05]} Raf8 {[%emt 0:00:03]} 29. Bxe3 {[%emt 0:13:40]} Rxf3+ {[%emt 0:00:33]} 30. Kg2 {[%emt 0:00:04]} Rxe3 {[%emt 0:00:06]} 31. Rae1 {[%emt 0:00:36]} d5 {[%emt 0:03:03]} 32. Nc5 {[%emt 0:00:21]} Rf4 {[%emt 0:06:49]} 33. Be2 {[%emt 0:14:58]} Nf8 {[%emt 0:01:56]} 34. Nd3 {[%emt 0:02:47]} Rfe4 {[%emt 0:00:45]} 35. Kf2 {[%emt 0:00:54]} Nd7 {[%emt 0:01:10]} 36. Bf1 {[%emt 0:01:32]} Be5 {[%emt 0:01:38]} 37. Rh3 {[%emt 0:01:52]} Rxe1 {[%emt 0:00:35]} 38. Nxe1 {[%emt 0:00:05]} Bf4 {[%emt 0:00:11]} 39. Nc2 {[%emt 0:02:13]} Ne5 {[%emt 0:00:29]} 40. Bg2 {[%emt 0:00:00]} d3 {[%emt 0:00:00]} 41. Bxe4 {[%emt 0:05:36]} dxe4 {[%emt 0:00:54]} 42. Ne3 {[%emt 0:04:34]} Ng4+ {[%emt 0:00:16]} 43. Nxg4 {[%emt 0:00:05]} hxg4 {[%emt 0:00:04]} 44. Rh1 {[%emt 0:00:04]} e3+ {[%emt 0:00:05]} 45. Kf1 {[%emt 0:00:49]} Bg3 {[%emt 0:00:17]} 0-1

[Event "RUS-ch Boys U21 2021"]
[Site "Loo"]
[Date "2021.04.23"]
[Round "3.10"]
[White "Golikov, Daniil"]
[Black "Shemyakin, Valeriy"]
[Result "1-0"]
[ECO "A44"]
[WhiteElo "2250"]
[BlackElo "2168"]
[Annotator "NA"]
[PlyCount "81"]
[EventDate "2021.04.21"]
[EventType "swiss"]
[EventCountry "RUS"]
[SourceTitle "playchess.com"]
[Source "ChessBase"]
[SourceQuality "1"]
[TimeControl "40/5400+30:1800+30"]

1. d4 {[%emt 0:00:00]} c5 {[%emt 0:00:00]} 2. d5 {[%emt 0:00:00]} e5 {[%emt 0:00:02]} 3. Nc3 {[%emt 0:00:00]} d6 {[%emt 0:00:09]} 4. Nf3 {[%emt 0:00:00]} Be7 {[%emt 0:03:03]} 5. e4 {[%emt 0:01:10]} Nf6 {[%emt 0:00:07]} 6. a4 {[%emt 0:05:08]} Nbd7 {[%emt 0:01:14]} 7. Bd3 {[%emt 0:01:28]} O-O {[%emt 0:03:13]} 8. h3 {[%emt 0:00:40]} Re8 {[%emt 0:11:10]} 9. O-O {[%emt 0:04:00]} Nf8 {[%emt 0:00:35]} 10. a5 {[%emt 0:05:49]} Ng6 {[%emt 0:02:58]} 11. a6 {[%emt 0:03:42]} bxa6 {[%emt 0:01:53]} 12. Bxa6 {[%emt 0:01:07]} Bd7 {[%emt 0:01:38]} 13. Be3 {[%emt 0:12:18]} Nf4 {[%emt 0:10:23]} 14. Qd2 {[%emt 0:06:50]} N6h5 {[%emt 0:03:37]} 15. b4 {[%emt 0:06:18]} cxb4 {[%emt 0:07:15]} 16. Na2 {[%emt 0:00:07]} b3 {[%emt 0:03:18]} 17. cxb3 {[%emt 0:00:34]} f5 {[%emt 0:00:34]} 18. exf5 {[%emt 0:00:57]} Bxf5 {[%emt 0:00:15]} 19. Nc3 {[%emt 0:02:51]} Rf8 {[%emt 0:02:19]} 20. Kh2 {[%emt 0:03:03]} Nxg2 {[%emt 0:15:45]} 21. Rg1 {[%emt 0:23:00]} Nxe3 {[%emt 0:02:10]} 22. Qxe3 {[%emt 0:00:01]} Nf4 {[%emt 0:00:14]} 23. Rg3 {[%emt 0:03:29]} Qb6 {[%emt 0:03:44]} 24. Bc4 {[%emt 0:02:01]} Nh5 {[%emt 0:05:53]} 25. Rgg1 {[%emt 0:06:49]} Qxe3 {[%emt 0:09:42]} 26. fxe3 {[%emt 0:00:00]} Bxh3 {[%emt 0:00:48]} 27. Nxe5 {[%emt 0:01:57]} Bf6 {[%emt 0:00:19]} 28. Kxh3 {[%emt 0:00:04]} Bxe5 {[%emt 0:00:07]} 29. Nb5 {[%emt 0:00:02]} Rf3+ {[%emt 0:09:23]} 30. Kg4 {[%emt 0:00:06]} Raf8 {[%emt 0:00:04]} 31. Raf1 {[%emt 0:04:10]} Rxf1 {[%emt 0:00:46]} 32. Rxf1 {[%emt 0:01:02]} Rxf1 {[%emt 0:00:02]} 33. Bxf1 {[%emt 0:00:04]} Nf6+ {[%emt 0:00:30]} 34. Kf5 {[%emt 0:00:58]} a5 {[%emt 0:00:19]} 35. Ke6 {[%emt 0:00:09]} Ne4 {[%emt 0:00:07]} 36. Ke7 {[%emt 0:00:31]} Nd2 {[%emt 0:01:58]} 37. Bh3 {[%emt 0:00:30]} h5 {[%emt 0:01:47]} 38. Be6+ {[%emt 0:00:05]} Kh7 39. Nxd6 {[%emt 0:00:03]} Bxd6+ {[%emt 0:00:44]} 40. Kxd6 {[%emt 0:00:00]} Nxb3 {[%emt 0:00:00]} 41. Kc6 {[%emt 0:00:50]} 1-0

[Event "RUS-ch Boys U21 2021"]
[Site "Loo"]
[Date "2021.04.23"]
[Round "3.11"]
[White "Marchuk, Rostislav"]
[Black "Makovich, Andrey"]
[Result "0-1"]
[ECO "D02"]
[WhiteElo "2080"]
[BlackElo "2171"]
[Annotator "NA"]
[PlyCount "86"]
[EventDate "2021.04.21"]
[EventType "swiss"]
[EventCountry "RUS"]
[SourceTitle "playchess.com"]
[Source "ChessBase"]
[SourceQuality "1"]
[TimeControl "40/5400+30:1800+30"]

1. d4 {[%emt 0:00:00]} d5 {[%emt 0:00:00]} 2. Nf3 {[%emt 0:00:00]} Nf6 {[%emt 0:00:00]} 3. Bf4 {[%emt 0:00:00]} c5 {[%emt 0:00:00]} 4. e3 {[%emt 0:00:00]} cxd4 {[%emt 0:00:00]} 5. exd4 {[%emt 0:00:00]} Nc6 {[%emt 0:00:00]} 6. c3 {[%emt 0:00:31]} Bf5 {[%emt 0:00:00]} 7. Ne5 {[%emt 0:02:50]} Nd7 {[%emt 0:02:11]} 8. Qb3 {[%emt 0:08:58]} Ncxe5 {[%emt 0:02:43]} 9. Bxe5 {[%emt 0:00:32]} Qb6 {[%emt 0:02:41]} 10. Bb5 {[%emt 0:02:30]} e6 {[%emt 0:07:00]} 11. a4 {[%emt 0:06:29]} Bd6 {[%emt 0:11:48]} 12. Nd2 {[%emt 0:21:15]} Qc7 {[%emt 0:04:21]} 13. Bxd6 {[%emt 0:12:20]} Qxd6 {[%emt 0:00:20]} 14. c4 {[%emt 0:01:52]} b6 {[%emt 0:16:31]} 15. Qa3 {[%emt 0:12:37]} Ke7 {[%emt 0:06:24]} 16. b4 {[%emt 0:04:15]} Nf6 {[%emt 0:05:49]} 17. c5 {[%emt 0:01:08]} Qf4 {[%emt 0:00:11]} 18. Nf3 {[%emt 0:06:13]} Be4 {[%emt 0:03:11]} 19. Qc1 {[%emt 0:06:42]} Qg4 {[%emt 0:01:36]} 20. Ne5 {[%emt 0:01:33]} Qxg2 {[%emt 0:00:37]} 21. Nc6+ {[%emt 0:00:14]} Kf8 {[%emt 0:00:11]} 22. Qf4 {[%emt 0:00:06]} h6 {[%emt 0:01:35]} 23. Ke2 {[%emt 0:03:03]} Qg5 {[%emt 0:02:22]} 24. Qxg5 {[%emt 0:01:19]} hxg5 {[%emt 0:00:01]} 25. f3 {[%emt 0:00:51]} Bf5 {[%emt 0:00:02]} 26. Ba6 {[%emt 0:01:29]} g4 {[%emt 0:00:16]} 27. Bb7 {[%emt 0:01:11]} gxf3+ {[%emt 0:00:10]} 28. Kf2 {[%emt 0:01:26]} Ne4+ {[%emt 0:01:17]} 29. Kxf3 {[%emt 0:00:16]} Rh3+ {[%emt 0:00:05]} 30. Kg2 {[%emt 0:00:14]} Re8 {[%emt 0:00:03]} 31. Ne5 {[%emt 0:01:17]} Ng5 {[%emt 0:00:26]} 32. Rhf1 {[%emt 0:00:34]} f6 {[%emt 0:00:33]} 33. c6 {[%emt 0:01:18]} Be4+ {[%emt 0:01:22]} 34. Kg1 {[%emt 0:00:10]} Ke7 {[%emt 0:00:08]} 35. c7 {[%emt 0:00:47]} fxe5 {[%emt 0:00:44]} 36. dxe5 {[%emt 0:00:46]} Rc3 {[%emt 0:02:47]} 37. Rfc1 {[%emt 0:00:07]} Nh3+ {[%emt 0:00:05]} 38. Kf1 {[%emt 0:00:10]} Rf8+ {[%emt 0:00:01]} 39. Ke1 {[%emt 0:00:30]} Re3+ {[%emt 0:01:05]} 40. Kd2 {[%emt 0:00:00]} Rd3+ {[%emt 0:00:00]} 41. Ke1 {[%emt 0:00:55]} Rf2 {[%emt 0:00:39]} 42. Rc6 {[%emt 0:04:40]} Re3+ {[%emt 0:00:09]} 43. Kd1 {[%emt 0:00:02]} Bf3+ {[%emt 0:00:06]} 0-1